[Event "*** MasterClass Titled Tuesday Blitz"]
[Site "Chess.com"]
[Date "2017.09.05"]
[Round "2"]
[White "Vamostodorecto"]
[Black "dolynachess"]
[Result "0-1"]
[WhiteElo "2339"]
[BlackElo "2406"]
[TimeControl "180+2"]
[EndTime "13:23:02 PDT"]
[Termination "dolynachess won by resignation"]

1. d4 {[%clk 0:02:48.9]} 1... Nf6 {[%clk 0:03:00.2]} 2. c4 {[%clk 0:02:50.3]}
2... c5 {[%clk 0:03:00.7]} 3. d5 {[%clk 0:02:51.3]} 3... b5 {[%clk 0:03:02]} 4.
cxb5 {[%clk 0:02:52.2]} 4... a6 {[%clk 0:03:03.2]} 5. Nc3 {[%clk 0:02:54]} 5...
axb5 {[%clk 0:03:03.7]} 6. e4 {[%clk 0:02:56.1]} 6... b4 {[%clk 0:03:05.1]} 7.
Nb5 {[%clk 0:02:58.2]} 7... d6 {[%clk 0:03:05.9]} 8. Bc4 {[%clk 0:02:58.9]} 8...
g6 {[%clk 0:02:57.7]} 9. e5 {[%clk 0:02:59.3]} 9... dxe5 {[%clk 0:02:48.3]} 10.
d6 {[%clk 0:03:00.7]} 10... Na6 {[%clk 0:02:44.5]} 11. Bg5 {[%clk 0:02:34.5]}
11... Bg7 {[%clk 0:02:30.2]} 12. Nf3 {[%clk 0:02:17.9]} 12... O-O {[%clk
0:02:25.3]} 13. Nxe5 {[%clk 0:02:15.8]} 13... h6 {[%clk 0:02:07.8]} 14. Nc6
{[%clk 0:01:52.9]} 14... Qb6 {[%clk 0:02:00.1]} 15. Nxe7+ {[%clk 0:01:50.3]}
15... Kh7 {[%clk 0:02:00.4]} 16. Bxf6 {[%clk 0:00:57.2]} 16... Bxf6 {[%clk
0:02:02.3]} 17. Qf3 {[%clk 0:00:51]} 17... Bxb2 {[%clk 0:01:53.9]} 18. Rb1
{[%clk 0:00:43.1]} 18... Bb7 {[%clk 0:01:50.9]} 19. Qb3 {[%clk 0:00:36.3]} 19...
Bg7 {[%clk 0:00:52.1]} 20. O-O {[%clk 0:00:35.8]} 20... Bc6 {[%clk 0:00:45.3]}
21. a4 {[%clk 0:00:33.1]} 21... bxa3 {[%clk 0:00:43.1]} 22. Nxc6 {[%clk
0:00:29.1]} 22... Qxc6 {[%clk 0:00:41.5]} 23. Bd5 {[%clk 0:00:31.2]} 23... Qd7
{[%clk 0:00:38.1]} 24. Bxa8 {[%clk 0:00:31.6]} 24... Rxa8 {[%clk 0:00:40]} 25.
Qxa3 {[%clk 0:00:25.5]} 25... Nc7 {[%clk 0:00:40.7]} 26. Qb3 {[%clk 0:00:26.7]}
26... Nxb5 {[%clk 0:00:40.8]} 27. Qxb5 {[%clk 0:00:29.2]} 27... Qxd6 {[%clk
0:00:42.1]} 28. Qb7 {[%clk 0:00:28.6]} 28... Rf8 {[%clk 0:00:41.4]} 29. Rb6
{[%clk 0:00:24.7]} 29... Qd3 {[%clk 0:00:36]} 30. Qc7 {[%clk 0:00:19.9]} 30...
Bd4 {[%clk 0:00:34.6]} 31. Rd6 {[%clk 0:00:19.7]} 31... Kg7 {[%clk 0:00:33.1]}
32. Rc1 {[%clk 0:00:13.4]} 32... Qd2 {[%clk 0:00:28.9]} 33. Qxc5 {[%clk
0:00:12.4]} 33... Qxf2+ {[%clk 0:00:24.8]} 34. Kh1 {[%clk 0:00:14.2]} 34... Bxc5
{[%clk 0:00:26]} 0-1

[Event "*** MasterClass Titled Tuesday Blitz"]
[Site "Chess.com"]
[Date "2017.09.05"]
[Round "2"]
[White "abubakrtagelsir"]
[Black "Letinac"]
[Result "1-0"]
[WhiteElo "2214"]
[BlackElo "2082"]
[TimeControl "180+2"]
[EndTime "13:23:05 PDT"]
[Termination "abubakrtagelsir won by resignation"]

1. e4 {[%clk 0:03:01.9]} 1... d6 {[%clk 0:02:07.1]} 2. d4 {[%clk 0:03:00.8]}
2... c6 {[%clk 0:02:07.5]} 3. Nc3 {[%clk 0:03:01.1]} 3... Qc7 {[%clk 0:02:08.4]}
4. f4 {[%clk 0:03:01.6]} 4... Nd7 {[%clk 0:02:08.5]} 5. Nf3 {[%clk 0:03:02.2]}
5... e5 {[%clk 0:02:09.3]} 6. Be3 {[%clk 0:02:56.7]} 6... Ngf6 {[%clk
0:02:09.5]} 7. Qd2 {[%clk 0:02:57.4]} 7... Be7 {[%clk 0:02:09.9]} 8. h3 {[%clk
0:02:54.3]} 8... b6 {[%clk 0:02:06.4]} 9. g4 {[%clk 0:02:51.8]} 9... h6 {[%clk
0:02:02.7]} 10. O-O-O {[%clk 0:02:49.3]} 10... Bb7 {[%clk 0:02:02.8]} 11. Be2
{[%clk 0:02:42.1]} 11... O-O-O {[%clk 0:02:02.8]} 12. Rhg1 {[%clk 0:02:35.3]}
12... Ne8 {[%clk 0:01:53]} 13. Bc4 {[%clk 0:02:31.2]} 13... Rf8 {[%clk
0:01:50.1]} 14. f5 {[%clk 0:02:25.8]} 14... f6 {[%clk 0:01:45.8]} 15. Kb1 {[%clk
0:02:23.5]} 15... Kb8 {[%clk 0:01:46]} 16. Nh4 {[%clk 0:02:22.6]} 16... b5
{[%clk 0:01:41.4]} 17. Be6 {[%clk 0:02:20.4]} 17... Nb6 {[%clk 0:01:36.5]} 18.
Ng6 {[%clk 0:02:18.8]} 18... b4 {[%clk 0:01:33.2]} 19. Ne2 {[%clk 0:02:16.4]}
19... c5 {[%clk 0:01:26.1]} 20. Nxf8 {[%clk 0:02:08.3]} 20... Bxf8 {[%clk
0:01:25.7]} 21. dxc5 {[%clk 0:02:08.8]} 21... Na4 {[%clk 0:01:20.2]} 22. Qxb4
{[%clk 0:02:00.7]} 22... Nxc5 {[%clk 0:01:15.6]} 23. Bxc5 {[%clk 0:01:30.8]}
23... dxc5 {[%clk 0:01:14.9]} 24. Rxd8+ {[%clk 0:01:29.8]} 24... Qxd8 {[%clk
0:01:15.7]} 25. Qc4 {[%clk 0:01:30.5]} 25... Nd6 {[%clk 0:01:15]} 26. Rd1 {[%clk
0:01:20.1]} 26... Qc7 {[%clk 0:01:09.4]} 27. Qa4 {[%clk 0:01:19.2]} 27... Bc6
{[%clk 0:00:57.8]} 28. Qb3+ {[%clk 0:01:18.1]} 28... Qb6 {[%clk 0:00:55.8]} 29.
Nc3 {[%clk 0:01:14.5]} 29... Qxb3 {[%clk 0:00:55.8]} 30. axb3 {[%clk 0:01:13.2]}
30... Kc7 {[%clk 0:00:52.8]} 31. Bd5 {[%clk 0:01:13.2]} 31... Bd7 {[%clk
0:00:49]} 32. Ne2 {[%clk 0:01:02.6]} 32... Be7 {[%clk 0:00:48.8]} 33. c3 {[%clk
0:01:03.5]} 33... Bb5 {[%clk 0:00:48.8]} 34. Ng3 {[%clk 0:01:01.7]} 34... a5
{[%clk 0:00:47.8]} 35. Kc2 {[%clk 0:01:02.4]} 35... Nc8 {[%clk 0:00:42.2]} 36.
Ra1 {[%clk 0:00:55.9]} 36... Kb6 {[%clk 0:00:41.1]} 37. Nh5 {[%clk 0:00:54.9]}
37... Bf8 {[%clk 0:00:41]} 38. b4 {[%clk 0:00:53.5]} 38... cxb4 {[%clk
0:00:40.7]} 39. cxb4 {[%clk 0:00:53.4]} 39... a4 {[%clk 0:00:37.9]} 40. Rd1
{[%clk 0:00:51.4]} 40... Nd6 {[%clk 0:00:36.7]} 41. Kc3 {[%clk 0:00:45.9]} 41...
Nc8 {[%clk 0:00:33.5]} 42. Rc1 {[%clk 0:00:41.4]} 42... Be8 {[%clk 0:00:33.6]}
43. Kd3 {[%clk 0:00:38.7]} 43... Bxh5 {[%clk 0:00:33.7]} 44. Rxc8 {[%clk
0:00:37.6]} 44... Bxb4 {[%clk 0:00:32.1]} 45. gxh5 {[%clk 0:00:36.8]} 1-0

[Event "*** MasterClass Titled Tuesday Blitz"]
[Site "Chess.com"]
[Date "2017.09.05"]
[Round "2"]
[White "jncool68"]
[Black "OparinGrigoriy"]
[Result "1/2-1/2"]
[WhiteElo "2468"]
[BlackElo "2602"]
[TimeControl "180+2"]
[EndTime "13:23:08 PDT"]
[Termination "Game drawn - insufficient material"]

1. e4 {[%clk 0:03:01.9]} 1... c5 {[%clk 0:03:00.5]} 2. Nf3 {[%clk 0:03:02.1]}
2... d6 {[%clk 0:03:02]} 3. d4 {[%clk 0:03:03]} 3... cxd4 {[%clk 0:03:03.9]} 4.
Nxd4 {[%clk 0:03:04.5]} 4... Nf6 {[%clk 0:03:05.6]} 5. Nc3 {[%clk 0:03:06]} 5...
a6 {[%clk 0:03:07]} 6. Bg5 {[%clk 0:03:07]} 6... e6 {[%clk 0:03:07.3]} 7. f4
{[%clk 0:03:07.9]} 7... h6 {[%clk 0:03:08.7]} 8. Bh4 {[%clk 0:03:07.9]} 8... Qb6
{[%clk 0:03:10]} 9. Qd2 {[%clk 0:03:03.4]} 9... Qxb2 {[%clk 0:03:09.7]} 10. Rb1
{[%clk 0:03:04.5]} 10... Qa3 {[%clk 0:03:10.7]} 11. f5 {[%clk 0:03:05.5]} 11...
Be7 {[%clk 0:03:05]} 12. fxe6 {[%clk 0:02:41.6]} 12... fxe6 {[%clk 0:03:05.8]}
13. Bc4 {[%clk 0:02:40.1]} 13... Nxe4 {[%clk 0:02:49.2]} 14. Nxe4 {[%clk
0:02:36.9]} 14... Bxh4+ {[%clk 0:02:50.6]} 15. g3 {[%clk 0:02:38]} 15... Bg5
{[%clk 0:02:51.9]} 16. Nxg5 {[%clk 0:02:39]} 16... hxg5 {[%clk 0:02:53.5]} 17.
Nxe6 {[%clk 0:02:31.7]} 17... Qxg3+ {[%clk 0:02:53.7]} 18. hxg3 {[%clk
0:02:31.5]} 18... Rxh1+ {[%clk 0:02:54.1]} 19. Ke2 {[%clk 0:02:33.1]} 19... Rh2+
{[%clk 0:02:55.1]} 20. Ke1 {[%clk 0:02:31.4]} 20... Rxd2 {[%clk 0:02:56.4]} 21.
Kxd2 {[%clk 0:02:32.6]} 21... Bxe6 {[%clk 0:02:25.7]} 22. Bxe6 {[%clk
0:02:34.5]} 22... Nc6 {[%clk 0:02:18.6]} 23. Rxb7 {[%clk 0:02:24.8]} 23... Nd8
{[%clk 0:02:17.1]} 24. Bd7+ {[%clk 0:02:18.9]} 24... Ke7 {[%clk 0:02:18.5]} 25.
Rc7 {[%clk 0:02:19.3]} 25... Kf6 {[%clk 0:02:19.8]} 26. g4 {[%clk 0:02:02.5]}
26... Nf7 {[%clk 0:02:12.4]} 27. Bc6 {[%clk 0:01:39.8]} 27... Rb8 {[%clk
0:02:13.1]} 28. Ra7 {[%clk 0:01:39]} 28... Rb6 {[%clk 0:02:07.7]} 29. Bb7 {[%clk
0:01:33.3]} 29... a5 {[%clk 0:02:05.3]} 30. Bc8 {[%clk 0:01:28.9]} 30... Rb5
{[%clk 0:02:02.7]} 31. a4 {[%clk 0:01:22.3]} 31... Rd5+ {[%clk 0:02:02.7]} 32.
Ke3 {[%clk 0:01:17.9]} 32... Rc5 {[%clk 0:02:03.6]} 33. Bf5 {[%clk 0:01:17.6]}
33... Ne5 {[%clk 0:02:00.4]} 34. Ra6 {[%clk 0:01:06.7]} 34... Rc6 {[%clk
0:01:59.9]} 35. Rxc6 {[%clk 0:01:00]} 35... Nxc6 {[%clk 0:02:01.8]} 36. Ke4
{[%clk 0:01:01.5]} 36... Nb4 {[%clk 0:01:38.6]} 37. c3 {[%clk 0:00:51.2]} 37...
Na6 {[%clk 0:01:02]} 38. Kd5 {[%clk 0:00:46.2]} 38... Nc5 {[%clk 0:01:02.9]} 39.
Bc2 {[%clk 0:00:41.2]} 39... Ke7 {[%clk 0:01:04.4]} 40. Kc6 {[%clk 0:00:42.2]}
40... Nd7 {[%clk 0:00:57.7]} 41. Kb5 {[%clk 0:00:38.5]} 41... Kd8 {[%clk
0:00:57.7]} 42. Kxa5 {[%clk 0:00:39.2]} 42... Kc7 {[%clk 0:00:59.3]} 43. Kb5
{[%clk 0:00:40.5]} 43... Ne5 {[%clk 0:00:59.1]} 44. Bf5 {[%clk 0:00:39.8]} 44...
g6 {[%clk 0:00:58.3]} 45. Be6 {[%clk 0:00:40.1]} 45... Kb7 {[%clk 0:00:51.7]}
46. c4 {[%clk 0:00:37]} 46... Ka7 {[%clk 0:00:50.7]} 47. c5 {[%clk 0:00:35.5]}
47... dxc5 {[%clk 0:00:51.3]} 48. Kxc5 {[%clk 0:00:37.4]} 48... Ka6 {[%clk
0:00:49.9]} 49. Kd5 {[%clk 0:00:38.1]} 49... Nf3 {[%clk 0:00:50.7]} 50. Bd7
{[%clk 0:00:34.7]} 50... Ka5 {[%clk 0:00:49.8]} 51. Ke6 {[%clk 0:00:34.1]} 51...
Nh2 {[%clk 0:00:51]} 52. Kf6 {[%clk 0:00:34.6]} 52... Nxg4+ {[%clk 0:00:53.4]}
53. Bxg4 {[%clk 0:00:35.7]} 53... Kxa4 {[%clk 0:00:56.2]} 54. Kxg5 {[%clk
0:00:37.2]} 54... Kb5 {[%clk 0:00:58.6]} 55. Kxg6 {[%clk 0:00:38.7]} 1/2-1/2

[Event "*** MasterClass Titled Tuesday Blitz"]
[Site "Chess.com"]
[Date "2017.09.05"]
[Round "2"]
[White "VSERGUEI"]
[Black "gkchesstiger"]
[Result "0-1"]
[WhiteElo "2529"]
[BlackElo "2669"]
[TimeControl "180+2"]
[EndTime "13:23:09 PDT"]
[Termination "gkchesstiger won on time"]

1. d4 {[%clk 0:03:01.9]} 1... d5 {[%clk 0:02:59.9]} 2. c4 {[%clk 0:03:02.1]}
2... c6 {[%clk 0:03:01.5]} 3. cxd5 {[%clk 0:03:01.9]} 3... cxd5 {[%clk
0:03:01.7]} 4. Bf4 {[%clk 0:03:02.8]} 4... e6 {[%clk 0:03:02.8]} 5. e3 {[%clk
0:03:03.3]} 5... Bd6 {[%clk 0:03:04.2]} 6. Bxd6 {[%clk 0:03:00.3]} 6... Qxd6
{[%clk 0:03:05.4]} 7. Nc3 {[%clk 0:03:01.4]} 7... Ne7 {[%clk 0:03:06.2]} 8. Nf3
{[%clk 0:02:59.4]} 8... Nbc6 {[%clk 0:03:07.3]} 9. Bd3 {[%clk 0:03:00]} 9... h6
{[%clk 0:03:07.3]} 10. O-O {[%clk 0:03:00.5]} 10... O-O {[%clk 0:03:08.3]} 11.
Rc1 {[%clk 0:03:00.6]} 11... Rd8 {[%clk 0:03:06.4]} 12. a3 {[%clk 0:03:00.9]}
12... Bd7 {[%clk 0:03:06.9]} 13. Na4 {[%clk 0:03:01.1]} 13... b6 {[%clk
0:03:05.8]} 14. Nc3 {[%clk 0:02:59.7]} 14... Be8 {[%clk 0:03:05.6]} 15. Ba6
{[%clk 0:02:56.3]} 15... f6 {[%clk 0:03:02.6]} 16. Qe2 {[%clk 0:02:48.4]} 16...
Rab8 {[%clk 0:02:57.5]} 17. h3 {[%clk 0:02:48.2]} 17... Bh5 {[%clk 0:02:56.5]}
18. Rc2 {[%clk 0:02:45]} 18... e5 {[%clk 0:02:57.2]} 19. dxe5 {[%clk 0:02:42.4]}
19... fxe5 {[%clk 0:02:57.1]} 20. Rd1 {[%clk 0:02:38.9]} 20... Qf6 {[%clk
0:02:52.1]} 21. e4 {[%clk 0:02:30.5]} 21... Nd4 {[%clk 0:02:49.2]} 22. Rxd4
{[%clk 0:02:25.1]} 22... exd4 {[%clk 0:02:50.1]} 23. Nxd5 {[%clk 0:02:25.1]}
23... Nxd5 {[%clk 0:02:51]} 24. Bc4 {[%clk 0:02:02.9]} 24... Bf7 {[%clk
0:02:50.6]} 25. exd5 {[%clk 0:02:02.4]} 25... Bxd5 {[%clk 0:02:51.3]} 26. Qd3
{[%clk 0:01:59.4]} 26... Kh8 {[%clk 0:02:48.7]} 27. Qxd4 {[%clk 0:01:54.5]}
27... Bxf3 {[%clk 0:02:45.1]} 28. Qxf6 {[%clk 0:01:54.2]} 28... gxf6 {[%clk
0:02:46.3]} 29. gxf3 {[%clk 0:01:54.8]} 29... Rbc8 {[%clk 0:02:47.9]} 30. a4
{[%clk 0:01:46.8]} 30... a6 {[%clk 0:02:46]} 31. Rc3 {[%clk 0:01:46.9]} 31...
Rd4 {[%clk 0:02:43.4]} 32. Bxa6 {[%clk 0:01:42.1]} 32... Rxc3 {[%clk 0:02:44.2]}
33. bxc3 {[%clk 0:01:42.4]} 33... Rxa4 {[%clk 0:02:45.5]} 34. Bb5 {[%clk
0:01:43.5]} 34... Ra3 {[%clk 0:02:46.6]} 35. c4 {[%clk 0:01:41.1]} 35... Rxf3
{[%clk 0:02:47.5]} 36. Kg2 {[%clk 0:01:42.6]} 36... Rc3 {[%clk 0:02:49]} 37. f3
{[%clk 0:01:43.4]} 37... Kg7 {[%clk 0:02:40.8]} 38. Kg3 {[%clk 0:01:44.6]} 38...
f5 {[%clk 0:02:41.7]} 39. Kf4 {[%clk 0:01:44.1]} 39... Kf6 {[%clk 0:02:42.9]}
40. h4 {[%clk 0:01:25.1]} 40... Rd3 {[%clk 0:02:42.2]} 41. Ba6 {[%clk
0:01:21.6]} 41... Rd4+ {[%clk 0:02:43.2]} 42. Kg3 {[%clk 0:01:22.7]} 42... h5
{[%clk 0:02:42.8]} 43. Bb5 {[%clk 0:01:19.6]} 43... f4+ {[%clk 0:02:43.9]} 44.
Kh3 {[%clk 0:01:20.7]} 44... Rd3 {[%clk 0:02:42]} 45. Kg2 {[%clk 0:01:21.4]}
45... Rd2+ {[%clk 0:02:43.3]} 46. Kg1 {[%clk 0:01:21.1]} 46... Rc2 {[%clk
0:02:43.1]} 47. Ba6 {[%clk 0:01:10.9]} 47... Ke5 {[%clk 0:02:43.5]} 48. Bb5
{[%clk 0:01:12.2]} 48... Kd4 {[%clk 0:02:44.6]} 49. Be8 {[%clk 0:01:13.2]} 49...
Rxc4 {[%clk 0:02:36.9]} 50. Bxh5 {[%clk 0:01:13.9]} 50... b5 {[%clk 0:02:36.7]}
51. Bg6 {[%clk 0:01:14.3]} 51... Ke5 {[%clk 0:02:36.7]} 52. Bd3 {[%clk
0:01:12.9]} 52... Rc1+ {[%clk 0:02:36.6]} 53. Kg2 {[%clk 0:01:13]} 53... b4
{[%clk 0:02:37.1]} 54. h5 {[%clk 0:01:13.7]} 54... Kf6 {[%clk 0:02:37.8]} 55. h6
{[%clk 0:01:14.7]} 55... b3 {[%clk 0:02:39]} 56. Kh3 {[%clk 0:01:15.9]} 56... b2
{[%clk 0:02:40.1]} 57. h7 {[%clk 0:01:16.8]} 57... Kg7 {[%clk 0:02:40.4]} 58.
Kg4 {[%clk 0:01:17.6]} 58... b1=Q {[%clk 0:02:38.9]} 59. Bxb1 {[%clk 0:01:16.5]}
59... Rxb1 {[%clk 0:02:40]} 60. Kxf4 {[%clk 0:01:15.5]} 60... Rb5 {[%clk
0:02:40.9]} 61. Kg4 {[%clk 0:01:06.9]} 61... Kxh7 {[%clk 0:02:41.5]} 62. f4
{[%clk 0:01:07.6]} 62... Kg6 {[%clk 0:02:42.7]} 63. Kh4 {[%clk 0:01:07.8]} 63...
Kf5 {[%clk 0:02:43.7]} 64. Kg3 {[%clk 0:01:07.8]} 64... Rb3+ {[%clk 0:02:44.5]}
65. Kh4 {[%clk 0:01:07.7]} 65... Rc3 {[%clk 0:02:45.6]} 66. Kh5 {[%clk
0:00:37.3]} 66... Rg3 {[%clk 0:02:40.1]} 67. Kh6 {[%clk 0:00:03]} 67... Kxf4
{[%clk 0:02:40.1]} 0-1

[Event "*** MasterClass Titled Tuesday Blitz"]
[Site "Chess.com"]
[Date "2017.09.05"]
[Round "2"]
[White "Me_ch_an"]
[Black "novocane"]
[Result "1-0"]
[WhiteElo "2209"]
[BlackElo "2120"]
[TimeControl "180+2"]
[EndTime "13:23:11 PDT"]
[Termination "Me_ch_an won by resignation"]

1. e4 {[%clk 0:03:01.9]} 1... c5 {[%clk 0:02:59.9]} 2. Na3 {[%clk 0:02:59.9]}
2... Nc6 {[%clk 0:02:53.7]} 3. Bb5 {[%clk 0:02:58.8]} 3... Nd4 {[%clk
0:02:52.7]} 4. Nf3 {[%clk 0:02:36.9]} 4... Nxb5 {[%clk 0:02:51.1]} 5. Nxb5
{[%clk 0:02:37]} 5... a6 {[%clk 0:02:52.1]} 6. Na3 {[%clk 0:02:32.2]} 6... e6
{[%clk 0:02:41.5]} 7. O-O {[%clk 0:02:31.1]} 7... Nf6 {[%clk 0:02:42.4]} 8. Re1
{[%clk 0:02:30.3]} 8... d6 {[%clk 0:02:40.6]} 9. c3 {[%clk 0:02:30.7]} 9... Be7
{[%clk 0:02:36]} 10. Nc2 {[%clk 0:02:26.3]} 10... O-O {[%clk 0:02:31.7]} 11. d4
{[%clk 0:02:26.5]} 11... d5 {[%clk 0:02:26.2]} 12. exd5 {[%clk 0:02:07.7]} 12...
Nxd5 {[%clk 0:02:10.4]} 13. c4 {[%clk 0:01:41.5]} 13... Nf6 {[%clk 0:02:05.8]}
14. Bg5 {[%clk 0:01:35.6]} 14... b6 {[%clk 0:01:54.2]} 15. Qe2 {[%clk
0:01:34.2]} 15... Bb7 {[%clk 0:01:06.5]} 16. Rad1 {[%clk 0:01:34]} 16... cxd4
{[%clk 0:00:52.2]} 17. Ncxd4 {[%clk 0:01:14]} 17... Qc7 {[%clk 0:00:52.3]} 18.
Rc1 {[%clk 0:00:46.8]} 18... Rad8 {[%clk 0:00:50.2]} 19. Red1 {[%clk 0:00:46.8]}
19... Ne4 {[%clk 0:00:45.1]} 20. Bxe7 {[%clk 0:00:45.2]} 20... Qxe7 {[%clk
0:00:45.6]} 21. a3 {[%clk 0:00:42]} 21... h6 {[%clk 0:00:46]} 22. b4 {[%clk
0:00:40.3]} 22... Qf6 {[%clk 0:00:46.3]} 23. c5 {[%clk 0:00:32.4]} 23... bxc5
{[%clk 0:00:43.1]} 24. bxc5 {[%clk 0:00:34.3]} 24... Bd5 {[%clk 0:00:40.6]} 25.
Qxa6 {[%clk 0:00:31.7]} 25... Ng5 {[%clk 0:00:38.2]} 26. Nxg5 {[%clk 0:00:17.5]}
26... Qxg5 {[%clk 0:00:38.8]} 27. Qf1 {[%clk 0:00:18.7]} 27... Bxg2 {[%clk
0:00:32.5]} 28. Qxg2 {[%clk 0:00:19.1]} 28... Rxd4 {[%clk 0:00:34]} 29. Qxg5
{[%clk 0:00:18.8]} 29... Rxd1+ {[%clk 0:00:34.5]} 30. Rxd1 {[%clk 0:00:19.7]}
30... hxg5 {[%clk 0:00:35.7]} 31. c6 {[%clk 0:00:20.3]} 31... Rc8 {[%clk
0:00:36.7]} 32. Rc1 {[%clk 0:00:21.3]} 32... Kf8 {[%clk 0:00:36.7]} 33. Kg2
{[%clk 0:00:21.7]} 33... Ke7 {[%clk 0:00:38]} 34. Kf3 {[%clk 0:00:20.1]} 34...
Kd6 {[%clk 0:00:37.3]} 35. Kg4 {[%clk 0:00:20.7]} 35... f6 {[%clk 0:00:24.5]}
36. Kh5 {[%clk 0:00:17.8]} 36... Rxc6 {[%clk 0:00:16.8]} 37. Rxc6+ {[%clk
0:00:16.8]} 37... Kxc6 {[%clk 0:00:18.7]} 38. Kg6 {[%clk 0:00:17.9]} 38... e5
{[%clk 0:00:19.5]} 39. Kxg7 {[%clk 0:00:18.3]} 39... f5 {[%clk 0:00:17.8]} 40.
Kf6 {[%clk 0:00:18.9]} 40... f4 {[%clk 0:00:18.2]} 41. Kxe5 {[%clk 0:00:19.5]}
1-0

[Event "*** MasterClass Titled Tuesday Blitz"]
[Site "Chess.com"]
[Date "2017.09.05"]
[Round "2"]
[White "BilodeauA"]
[Black "ftorodent"]
[Result "1-0"]
[WhiteElo "2650"]
[BlackElo "2465"]
[TimeControl "180+2"]
[EndTime "13:23:17 PDT"]
[Termination "BilodeauA won on time"]

1. e4 {[%clk 0:03:01.9]} 1... e6 {[%clk 0:02:46.3]} 2. d4 {[%clk 0:03:02]} 2...
d5 {[%clk 0:02:46.9]} 3. Nd2 {[%clk 0:03:03]} 3... c5 {[%clk 0:02:47.2]} 4. exd5
{[%clk 0:03:03]} 4... exd5 {[%clk 0:02:48.4]} 5. Ngf3 {[%clk 0:02:56.9]} 5...
Nc6 {[%clk 0:02:49.5]} 6. Bb5 {[%clk 0:02:55.8]} 6... Bd6 {[%clk 0:02:50.5]} 7.
dxc5 {[%clk 0:02:53.8]} 7... Bxc5 {[%clk 0:02:51.6]} 8. O-O {[%clk 0:02:54.9]}
8... Ne7 {[%clk 0:02:52.7]} 9. Nb3 {[%clk 0:02:54.8]} 9... Bd6 {[%clk 0:02:54]}
10. h3 {[%clk 0:02:48.1]} 10... O-O {[%clk 0:02:54.1]} 11. Re1 {[%clk
0:02:44.6]} 11... h6 {[%clk 0:02:51.1]} 12. c3 {[%clk 0:02:45.5]} 12... Bf5
{[%clk 0:02:51.3]} 13. Bd3 {[%clk 0:02:46]} 13... Qd7 {[%clk 0:02:51.6]} 14.
Nbd4 {[%clk 0:02:40.5]} 14... Bg6 {[%clk 0:02:47]} 15. Be3 {[%clk 0:02:28.9]}
15... Rad8 {[%clk 0:02:47.3]} 16. Qd2 {[%clk 0:02:28.7]} 16... Rfe8 {[%clk
0:02:45.2]} 17. Rad1 {[%clk 0:02:29.3]} 17... Bxd3 {[%clk 0:02:38.4]} 18. Qxd3
{[%clk 0:02:29.9]} 18... Ng6 {[%clk 0:02:40.1]} 19. Bd2 {[%clk 0:02:07.7]} 19...
Nge5 {[%clk 0:02:29.3]} 20. Nxe5 {[%clk 0:02:05.2]} 20... Bxe5 {[%clk 0:02:30]}
21. Nf3 {[%clk 0:02:02]} 21... Bf6 {[%clk 0:02:29]} 22. Bf4 {[%clk 0:01:52.4]}
22... Rxe1+ {[%clk 0:02:18.7]} 23. Rxe1 {[%clk 0:01:51.8]} 23... d4 {[%clk
0:02:10.1]} 24. c4 {[%clk 0:01:50]} 24... Nb4 {[%clk 0:01:59]} 25. Qb3 {[%clk
0:01:49.9]} 25... a5 {[%clk 0:02:00]} 26. a3 {[%clk 0:01:50.3]} 26... Na6 {[%clk
0:01:55.4]} 27. Qb6 {[%clk 0:01:35.5]} 27... a4 {[%clk 0:01:41.4]} 28. Bxh6
{[%clk 0:01:30.3]} 28... d3 {[%clk 0:01:32.5]} 29. Bd2 {[%clk 0:01:29.1]} 29...
Rc8 {[%clk 0:01:12.7]} 30. Ne5 {[%clk 0:01:13.2]} 30... Bxe5 {[%clk 0:01:13.6]}
31. Rxe5 {[%clk 0:01:15.1]} 31... Rxc4 {[%clk 0:01:14]} 32. Qe3 {[%clk
0:01:14.4]} 32... Rc8 {[%clk 0:00:56.7]} 33. Re7 {[%clk 0:01:15.2]} 33... Qd5
{[%clk 0:00:57.2]} 34. h4 {[%clk 0:00:51.6]} 34... Nc5 {[%clk 0:00:55.3]} 35.
Re5 {[%clk 0:00:49.4]} 35... Qc4 {[%clk 0:00:55.7]} 36. Bc3 {[%clk 0:00:47.3]}
36... Nb3 {[%clk 0:00:30.3]} 37. Qg3 {[%clk 0:00:40]} 37... Nd4 {[%clk
0:00:22.9]} 38. Re4 {[%clk 0:00:36.4]} 38... Rd8 {[%clk 0:00:09.4]} 39. Kh2
{[%clk 0:00:33.6]} 39... Qc6 {[%clk 0:00:06.2]} 40. Bxd4 {[%clk 0:00:29.8]}
40... f6 {[%clk 0:00:05.1]} 41. Re7 {[%clk 0:00:30]} 1-0